[Event "BAN-chT Golden Jubilee 2021-22"]
[Site "Dhaka"]
[Date "2022.03.18"]
[Round "9.21"]
[White "abzid, Rahman"]
[Black "Islam, Khandaker Aminul"]
[Result "1/2-1/2"]
[ECO "A41"]
[WhiteElo "2106"]
[BlackElo "2153"]
[Annotator "ChessBase"]
[PlyCount "136"]
[EventDate "2022.03.10"]
[EventType "team-tourn"]
[EventCountry "BAN"]
[SourceTitle "playchess.com"]
[Source "ChessBase"]
[SourceQuality "1"]
[TimeControl "40/5400+30:1800+30"]

1. d4 {[%emt 0:00:04]} d6 {[%emt 0:00:22]} 2. Nf3 {[%emt 0:00:23]} g6 {[%emt 0:00:22]} 3. Bf4 {[%emt 0:01:49]} Bg7 {[%emt 0:00:25]} 4. e3 {[%emt 0:00:07]} Nd7 {[%emt 0:00:13]} 5. Be2 {[%emt 0:02:39]} e5 {[%emt 0:00:55]} 6. Bg5 {[%emt 0:02:11]} Ne7 {[%emt 0:00:53]} 7. O-O {[%emt 0:02:06]} h6 {[%emt 0:00:37]} 8. Bh4 {[%emt 0:00:07]} O-O {[%emt 0:04:21]} 9. dxe5 {[%emt 0:07:21]} dxe5 {[%emt 0:00:09]} 10. Nfd2 {[%emt 0:10:01]} g5 {[%emt 0:22:30]} 11. Bg3 {[%emt 0:00:13]} Nf5 {[%emt 0:02:40]} 12. c4 {[%emt 0:02:52]} Nc5 {[%emt 0:00:58]} 13. Nc3 {[%emt 0:00:47]} Nxg3 {[%emt 0:06:25]} 14. fxg3 {[%emt 0:07:07]} f5 {[%emt 0:01:03]} 15. Qc2 {[%emt 0:04:11]} g4 {[%emt 0:04:16]} 16. b4 {[%emt 0:07:01]} Ne6 {[%emt 0:02:06]} 17. c5 {[%emt 0:06:11]} Qg5 {[%emt 0:14:07]} 18. Nc4 {[%emt 0:01:05]} h5 {[%emt 0:04:33]} 19. Rad1 {[%emt 0:19:25]} a5 {[%emt 0:06:55]} 20. a3 {[%emt 0:04:10]} axb4 {[%emt 0:00:42]} 21. axb4 {[%emt 0:00:03]} f4 {[%emt 0:03:35]} 22. Qe4 {[%emt 0:01:24]} Qf5 {[%emt 0:06:21]} 23. Qxf5 {[%emt 0:05:05]} Rxf5 {[%emt 0:00:01]} 24. Nd5 {[%emt 0:00:18]} Rf7 {[%emt 0:06:49]} 25. gxf4 {[%emt 0:00:51]} exf4 {[%emt 0:00:07]} 26. Nxf4 {[%emt 0:03:02]} Nxf4 {[%emt 0:03:57]} 27. Rd8+ {[%emt 0:02:50]} Rf8 {[%emt 0:01:13]} 28. Rxf8+ {[%emt 0:00:16]} Kxf8 {[%emt 0:00:13]} 29. Rxf4+ {[%emt 0:00:46]} Ke7 {[%emt 0:00:21]} 30. Re4+ {[%emt 0:04:14]} Kd8 {[%emt 0:04:22]} 31. Na5 {[%emt 0:01:23]} Bc3 {[%emt 0:01:17]} 32. Bb5 {[%emt 0:00:30]} c6 {[%emt 0:00:33]} 33. Bf1 {[%emt 0:04:35]} Kc7 {[%emt 0:00:46]} 34. Re7+ {[%emt 0:01:30]} Bd7 {[%emt 0:01:55]} 35. Nc4 {[%emt 0:00:46]} Re8 {[%emt 0:00:44]} 36. Rxe8 {[%emt 0:00:24]} Bxe8 {[%emt 0:00:07]} 37. Nd6 {[%emt 0:00:22]} Bg6 {[%emt 0:00:16]} 38. b5 {[%emt 0:00:16]} Bb4 {[%emt 0:00:24]} 39. bxc6 {[%emt 0:00:23]} bxc6 {[%emt 0:00:33]} 40. Kf2 {[%emt 0:00:00]} Bxc5 {[%emt 0:00:00]} 41. Nc4 {[%emt 0:01:00]} Bf7 {[%emt 0:02:05]} 42. h3 {[%emt 0:07:46]} gxh3 {[%emt 0:05:05]} 43. gxh3 {[%emt 0:00:17]} Be8 {[%emt 0:00:18]} 44. Bg2 {[%emt 0:01:47]} Be7 {[%emt 0:00:21]} 45. Ke2 {[%emt 0:01:11]} c5 {[%emt 0:00:31]} 46. Kd3 {[%emt 0:01:18]} Bb5 {[%emt 0:00:28]} 47. Bf3 {[%emt 0:00:52]} h4 {[%emt 0:00:18]} 48. Kc3 {[%emt 0:01:24]} Bf6+ {[%emt 0:00:22]} 49. Kb3 {[%emt 0:00:55]} Bd7 {[%emt 0:00:19]} 50. Bg2 {[%emt 0:00:20]} Be6 {[%emt 0:00:01]} 51. Bf1 {[%emt 0:00:52]} Kc6 {[%emt 0:02:56]} 52. Kc2 {[%emt 0:01:25]} Kb5 {[%emt 0:03:08]} 53. Ne5+ {[%emt 0:01:11]} c4 {[%emt 0:01:26]} 54. Bxc4+ {[%emt 0:00:18]} Bxc4 {[%emt 0:00:35]} 55. Nxc4 {[%emt 0:00:07]} Kxc4 {[%emt 0:00:03]} 56. Kd2 {[%emt 0:00:15]} Kd5 {[%emt 0:00:17]} 57. Ke2 {[%emt 0:00:32]} Ke4 {[%emt 0:00:02]} 58. Kf2 {[%emt 0:00:09]} Be5 {[%emt 0:00:14]} 59. Kg2 {[%emt 0:00:41]} Bg3 {[%emt 0:00:02]} 60. Kg1 {[%emt 0:00:27]} Kf3 {[%emt 0:00:05]} 61. e4 {[%emt 0:00:22]} Be5 {[%emt 0:00:01]} 62. Kh1 {[%emt 0:00:21]} Kg3 {[%emt 0:00:02]} 63. Kg1 {[%emt 0:00:11]} Kxh3 {[%emt 0:00:05]} 64. Kh1 {[%emt 0:00:10]} Kg3 {[%emt 0:00:01]} 65. Kg1 {[%emt 0:00:22]} h3 {[%emt 0:00:06]} 66. Kh1 {[%emt 0:00:04]} Kf3 {[%emt 0:00:51]} 67. Kg1 {[%emt 0:00:02]} h2+ {[%emt 0:01:19]} 68. Kh1 {[%emt 0:00:01]} Kf2 {[%emt 0:00:09]} 1/2-1/2

[Event "BAN-chT Golden Jubilee 2021-22"]
[Site "Dhaka"]
[Date "2022.03.18"]
[Round "9.24"]
[White "Subrota, Biswas"]
[Black "Asif, Mahmud"]
[Result "1-0"]
[ECO "E11"]
[WhiteElo "2202"]
[BlackElo "1928"]
[Annotator "ChessBase"]
[PlyCount "115"]
[EventDate "2022.03.10"]
[EventType "team-tourn"]
[EventCountry "BAN"]
[SourceTitle "playchess.com"]
[Source "ChessBase"]
[SourceQuality "1"]
[TimeControl "40/5400+30:1800+30"]

1. d4 {[%emt 0:00:15]} Nf6 {[%emt 0:00:12]} 2. c4 {[%emt 0:01:33]} e6 {[%emt 0:00:15]} 3. Nf3 {[%emt 0:00:03]} d5 {[%emt 0:00:12]} 4. g3 {[%emt 0:00:01]} Bb4+ {[%emt 0:00:24]} 5. Bd2 {[%emt 0:00:06]} Be7 {[%emt 0:00:12]} 6. Bg2 {[%emt 0:00:02]} O-O {[%emt 0:00:42]} 7. Qc2 {[%emt 0:00:11]} a6 {[%emt 0:02:11]} 8. O-O {[%emt 0:04:08]} dxc4 {[%emt 0:06:30]} 9. Qxc4 {[%emt 0:00:15]} b5 {[%emt 0:00:30]} 10. Qc2 {[%emt 0:00:01]} Bb7 {[%emt 0:00:22]} 11. Rc1 {[%emt 0:00:03]} Bd6 {[%emt 0:05:44]} 12. Bg5 {[%emt 0:03:51]} Nbd7 {[%emt 0:10:12]} 13. Nbd2 {[%emt 0:00:01]} Re8 {[%emt 0:13:32]} 14. Nb3 {[%emt 0:10:12]} h6 {[%emt 0:03:33]} 15. Na5 {[%emt 0:04:39]} Bd5 {[%emt 0:03:54]} 16. Nc6 {[%emt 0:00:02]} Qc8 {[%emt 0:03:38]} 17. Bd2 {[%emt 0:00:56]} e5 {[%emt 0:11:49]} 18. dxe5 {[%emt 0:01:38]} Nxe5 {[%emt 0:35:38]} 19. Nfxe5 {[%emt 0:04:19]} Bxe5 {[%emt 0:00:00]} 20. Bxd5 {[%emt 0:00:41]} Nxd5 {[%emt 0:00:00]} 21. e4 {[%emt 0:01:57]} Nb6 {[%emt 0:00:00]} 22. f4 {[%emt 0:01:17]} Bd6 {[%emt 0:00:00]} 23. e5 {[%emt 0:04:17]} Bf8 {[%emt 0:00:00]} 24. b3 {[%emt 0:07:17]} Qh3 {[%emt 0:00:00]} 25. Qe4 {[%emt 0:01:17]} f6 {[%emt 0:00:00]} 26. Rc2 {[%emt 0:07:13]} fxe5 {[%emt 0:00:00]} 27. fxe5 {[%emt 0:00:02]} Nd7 {[%emt 0:00:00]} 28. Re1 {[%emt 0:02:18]} Bc5+ {[%emt 0:00:00]} 29. Kh1 {[%emt 0:00:31]} Rf8 {[%emt 0:00:00]} 30. Bf4 {[%emt 0:00:30]} Rae8 {[%emt 0:00:00]} 31. e6 {[%emt 0:03:27]} Bd6 {[%emt 0:00:00]} 32. Qg2 {[%emt 0:02:08]} Qxg2+ {[%emt 0:03:05]} 33. Kxg2 {[%emt 0:00:02]} Nc5 {[%emt 0:00:09]} 34. e7 {[%emt 0:01:08]} Rf7 {[%emt 0:00:18]} 35. Bxd6 {[%emt 0:02:18]} cxd6 {[%emt 0:00:09]} 36. Rd2 {[%emt 0:00:02]} Nb7 {[%emt 0:01:00]} 37. b4 {[%emt 0:00:01]} Rf6 {[%emt 0:01:58]} 38. Rd5 {[%emt 0:06:52]} Kf7 {[%emt 0:00:31]} 39. g4 {[%emt 0:03:07]} g6 {[%emt 0:00:45]} 40. Rd4 {[%emt 0:00:00]} Kg7 {[%emt 0:00:00]} 41. Rd5 {[%emt 0:10:35]} Kf7 {[%emt 0:02:44]} 42. Re3 {[%emt 0:01:01]} Re6 {[%emt 0:07:01]} 43. Rf3+ {[%emt 0:00:39]} Rf6 {[%emt 0:00:34]} 44. Ra3 {[%emt 0:00:49]} Ke6 {[%emt 0:05:39]} 45. Rd4 {[%emt 0:00:37]} a5 {[%emt 0:03:52]} 46. bxa5 {[%emt 0:01:03]} Kd7 {[%emt 0:01:46]} 47. Rc3 {[%emt 0:00:06]} Kc7 {[%emt 0:03:38]} 48. Nb4+ {[%emt 0:02:04]} Kb8 {[%emt 0:00:59]} 49. a6 {[%emt 0:00:17]} Nc5 {[%emt 0:00:39]} 50. Rxc5 {[%emt 0:00:06]} Rxe7 {[%emt 0:03:44]} 51. Rxb5+ {[%emt 0:03:57]} Ka8 {[%emt 0:01:40]} 52. Rb8+ {[%emt 0:01:57]} Kxb8 {[%emt 0:01:52]} 53. Nc6+ {[%emt 0:00:06]} Ka8 {[%emt 0:00:08]} 54. Nxe7 {[%emt 0:00:05]} Re6 {[%emt 0:00:53]} 55. Nd5 {[%emt 0:01:27]} Re2+ {[%emt 0:00:10]} 56. Kg3 {[%emt 0:00:05]} Rxa2 {[%emt 0:00:09]} 57. Rb4 {[%emt 0:00:06]} Rc2 {[%emt 0:01:23]} 58. Rb7 {[%emt 0:00:07]} 1-0

[Event "BAN-chT Golden Jubilee 2021-22"]
[Site "Dhaka"]
[Date "2022.03.20"]
[Round "11.4"]
[White "Hossain, Enamul"]
[Black "Ahmed, Shafiq"]
[Result "1-0"]
[ECO "C00"]
[WhiteElo "2410"]
[BlackElo "2106"]
[Annotator "RC"]
[PlyCount "67"]
[EventDate "2022.03.10"]
[EventType "team-tourn"]
[EventCountry "BAN"]
[SourceTitle "playchess.com"]
[Source "ChessBase"]
[SourceQuality "1"]
[TimeControl "40/5400+30:1800+30"]

1. e4 {[%emt 0:00:50]} e6 {[%emt 0:00:16]} 2. d3 {[%emt 0:01:17]} d5 {[%emt 0:00:26]} 3. Qe2 {[%emt 0:00:14]} Be7 {[%emt 0:09:35]} 4. Nf3 {[%emt 0:00:27]} Nf6 {[%emt 0:00:38]} 5. g3 {[%emt 0:00:17]} O-O {[%emt 0:00:49]} 6. Bg2 {[%emt 0:00:07]} c5 {[%emt 0:00:51]} 7. O-O {[%emt 0:00:10]} Nc6 {[%emt 0:00:07]} 8. e5 {[%emt 0:00:15]} Nd7 {[%emt 0:00:15]} 9. c4 {[%emt 0:00:14]} Nb6 {[%emt 0:08:52]} 10. Bf4 {[%emt 0:12:38]} Kh8 {[%emt 0:02:36]} 11. h4 {[%emt 0:02:38]} f6 {[%emt 0:00:59]} 12. Na3 {[%emt 0:09:15]} d4 {[%emt 0:14:33]} 13. Nb5 {[%emt 0:03:48]} f5 {[%emt 0:18:35]} 14. b3 {[%emt 0:08:00]} Bd7 {[%emt 0:06:44]} 15. Rfe1 {[%emt 0:07:38]} Be8 {[%emt 0:01:07]} 16. Ng5 {[%emt 0:03:11]} Qd7 {[%emt 0:02:15]} 17. a4 {[%emt 0:06:41]} h6 {[%emt 0:02:56]} 18. Nxe6 {[%emt 0:03:15]} Qxe6 {[%emt 0:03:57]} 19. a5 {[%emt 0:00:07]} Bd8 {[%emt 0:02:18]} 20. axb6 {[%emt 0:00:42]} Bxb6 {[%emt 0:00:12]} 21. Bd5 {[%emt 0:01:02]} Qg6 {[%emt 0:01:43]} 22. e6 {[%emt 0:00:29]} Rf6 {[%emt 0:03:36]} 23. Nd6 {[%emt 0:02:14]} Ne7 {[%emt 0:11:04]} 24. Bxb7 {[%emt 0:04:00]} Rd8 {[%emt 0:04:08]} 25. Bf3 {[%emt 0:01:57]} Rxd6 {[%emt 0:02:02]} 26. Bxd6 {[%emt 0:00:02]} Nc6 {[%emt 0:00:16]} 27. h5 {[%emt 0:01:18]} Qh7 {[%emt 0:00:32]} 28. Bxc6 {[%emt 0:00:47]} Bxc6 {[%emt 0:00:05]} 29. Be7 {[%emt 0:00:15]} f4 {[%emt 0:02:15]} 30. Bxf6 {[%emt 0:00:12]} gxf6 {[%emt 0:00:02]} 31. e7 {[%emt 0:00:10]} Be8 {[%emt 0:00:19]} 32. Qe6 {[%emt 0:01:15]} Qg7 {[%emt 0:00:33]} 33. Qc8 {[%emt 0:00:16]} Qg8 {[%emt 0:01:18]} 34. b4 {[%emt 0:00:32]} 1-0

[Event "BAN-chT Golden Jubilee 2021-22"]
[Site "Dhaka"]
[Date "2022.03.20"]
[Round "11.5"]
[White "Abu Sufian, Shakil"]
[Black "Mehdi Hasan Parag"]
[Result "1/2-1/2"]
[ECO "C88"]
[WhiteElo "2232"]
[BlackElo "2258"]
[Annotator "ChessBase"]
[PlyCount "140"]
[EventDate "2022.03.10"]
[EventType "team-tourn"]
[EventCountry "BAN"]
[SourceTitle "playchess.com"]
[Source "ChessBase"]
[SourceQuality "1"]
[TimeControl "40/5400+30:1800+30"]

1. e4 {[%emt 0:06:41]} e5 {[%emt 0:00:39]} 2. Nf3 {[%emt 0:00:04]} Nc6 {[%emt 0:00:09]} 3. Bb5 {[%emt 0:00:22]} a6 {[%emt 0:00:07]} 4. Ba4 {[%emt 0:01:09]} Nf6 {[%emt 0:00:06]} 5. O-O {[%emt 0:00:07]} Be7 {[%emt 0:00:08]} 6. d3 {[%emt 0:01:54]} b5 {[%emt 0:00:29]} 7. Bb3 {[%emt 0:00:01]} d6 {[%emt 0:00:26]} 8. a4 {[%emt 0:00:15]} Bb7 {[%emt 0:01:30]} 9. c3 {[%emt 0:04:12]} O-O {[%emt 0:00:17]} 10. Nbd2 {[%emt 0:00:37]} Na5 {[%emt 0:01:51]} 11. Ba2 {[%emt 0:01:47]} c5 {[%emt 0:00:25]} 12. Re1 {[%emt 0:00:36]} Nc6 {[%emt 0:00:16]} 13. Nf1 {[%emt 0:00:47]} h6 {[%emt 0:02:53]} 14. Ng3 {[%emt 0:03:20]} Rb8 {[%emt 0:02:16]} 15. axb5 {[%emt 0:02:51]} axb5 {[%emt 0:00:05]} 16. Nf5 {[%emt 0:00:15]} Bc8 {[%emt 0:02:39]} 17. Nxe7+ {[%emt 0:02:01]} Qxe7 {[%emt 0:00:21]} 18. h3 {[%emt 0:01:36]} Be6 {[%emt 0:01:25]} 19. Bb1 {[%emt 0:01:26]} Ra8 {[%emt 0:01:07]} 20. Rxa8 {[%emt 0:00:06]} Rxa8 {[%emt 0:00:13]} 21. d4 {[%emt 0:06:47]} Ra1 {[%emt 0:02:35]} 22. Bd3 {[%emt 0:03:16]} cxd4 {[%emt 0:02:51]} 23. Bxb5 {[%emt 0:10:25]} dxc3 {[%emt 0:02:41]} 24. bxc3 {[%emt 0:00:26]} Na5 {[%emt 0:04:26]} 25. Qc2 {[%emt 0:07:12]} Qc7 {[%emt 0:18:45]} 26. Bd2 {[%emt 0:04:48]} Ra2 {[%emt 0:03:10]} 27. Qb1 {[%emt 0:00:22]} Nb7 {[%emt 0:01:58]} 28. c4 {[%emt 0:03:14]} Ra8 {[%emt 0:00:10]} 29. Be3 {[%emt 0:00:38]} Nc5 {[%emt 0:02:14]} 30. Nd2 {[%emt 0:00:49]} Qc8 {[%emt 0:07:32]} 31. f3 {[%emt 0:02:50]} Nh5 {[%emt 0:00:58]} 32. Nb3 {[%emt 0:04:51]} Bxh3 {[%emt 0:09:49]} 33. Nxc5 {[%emt 0:00:14]} dxc5 {[%emt 0:00:15]} 34. Qb2 {[%emt 0:00:51]} Nf4 {[%emt 0:16:41]} 35. Bxf4 {[%emt 0:00:41]} exf4 {[%emt 0:00:02]} 36. gxh3 {[%emt 0:00:05]} Qxh3 {[%emt 0:00:34]} 37. Qg2 {[%emt 0:00:14]} Qh4 {[%emt 0:00:20]} 38. Rd1 {[%emt 0:01:00]} Qf6 {[%emt 0:00:48]} 39. Kf1 {[%emt 0:04:29]} Ra3 {[%emt 0:02:32]} 40. Qg4 {[%emt 0:00:00]} g5 {[%emt 0:00:00]} 41. Be8 {[%emt 0:18:34]} Kg7 {[%emt 0:09:36]} 42. Bxf7 {[%emt 0:03:49]} Ra1 {[%emt 0:05:43]} 43. Rxa1 {[%emt 0:06:28]} Qxa1+ {[%emt 0:00:04]} 44. Kg2 {[%emt 0:00:04]} Qb2+ {[%emt 0:01:17]} 45. Kh3 {[%emt 0:00:59]} Kxf7 {[%emt 0:03:56]} 46. Qd7+ {[%emt 0:00:18]} Kg6 {[%emt 0:04:54]} 47. Qf5+ {[%emt 0:00:51]} Kg7 {[%emt 0:00:14]} 48. e5 {[%emt 0:02:14]} Qb7 {[%emt 0:02:09]} 49. Qf6+ {[%emt 0:02:48]} Kg8 {[%emt 0:02:15]} 50. Kg4 {[%emt 0:02:45]} Qg7 {[%emt 0:01:15]} 51. Qd8+ {[%emt 0:00:16]} Qf8 {[%emt 0:00:52]} 52. Qd5+ {[%emt 0:00:15]} Kg7 {[%emt 0:00:50]} 53. Qd7+ {[%emt 0:03:02]} Kg6 {[%emt 0:01:36]} 54. Qc6+ {[%emt 0:01:10]} Kg7 {[%emt 0:00:54]} 55. Qd5 {[%emt 0:04:01]} Qf7 {[%emt 0:04:09]} 56. e6 {[%emt 0:00:50]} h5+ {[%emt 0:03:51]} 57. Kh3 {[%emt 0:03:00]} Qe7 {[%emt 0:00:33]} 58. Qe5+ {[%emt 0:00:26]} Kg6 {[%emt 0:00:49]} 59. Kg2 {[%emt 0:00:32]} Kh7 {[%emt 0:04:00]} 60. Kf2 {[%emt 0:01:25]} Kg6 {[%emt 0:00:17]} 61. Kg2 {[%emt 0:02:15]} g4 {[%emt 0:00:31]} 62. Qe4+ {[%emt 0:01:28]} Kg5 {[%emt 0:00:42]} 63. Qe5+ {[%emt 0:00:06]} Kg6 {[%emt 0:00:07]} 64. Qe4+ {[%emt 0:00:07]} Kf6 {[%emt 0:01:24]} 65. fxg4 {[%emt 0:01:21]} hxg4 {[%emt 0:00:14]} 66. Qxf4+ {[%emt 0:00:04]} Kxe6 {[%emt 0:00:11]} 67. Qxg4+ {[%emt 0:00:04]} Kd6 {[%emt 0:00:11]} 68. Kf3 {[%emt 0:00:50]} Qe5 {[%emt 0:01:27]} 69. Qf4 {[%emt 0:01:46]} Ke6 {[%emt 0:00:17]} 70. Qxe5+ {[%emt 0:00:08]} Kxe5 {[%emt 0:05:29]} 1/2-1/2

[Event "BAN-chT Golden Jubilee 2021-22"]
[Site "Dhaka"]
[Date "2022.03.20"]
[Round "11.9"]
[White "Chowdhury, Sohel"]
[Black "Shawket Bin, Osman Shaon"]
[Result "1/2-1/2"]
[ECO "C78"]
[WhiteElo "2046"]
[BlackElo "2065"]
[Annotator "ChessBase"]
[PlyCount "149"]
[EventDate "2022.03.10"]
[EventType "team-tourn"]
[EventCountry "BAN"]
[SourceTitle "playchess.com"]
[Source "ChessBase"]
[SourceQuality "1"]
[TimeControl "40/5400+30:1800+30"]

1. e4 {[%emt 0:10:47]} e5 {[%emt 0:00:34]} 2. Nf3 {[%emt 0:00:26]} Nc6 {[%emt 0:00:08]} 3. Bb5 {[%emt 0:00:41]} a6 {[%emt 0:00:07]} 4. Ba4 {[%emt 0:00:05]} Nf6 {[%emt 0:00:15]} 5. O-O {[%emt 0:00:03]} b5 {[%emt 0:00:15]} 6. Bb3 {[%emt 0:00:10]} Bc5 {[%emt 0:00:08]} 7. c3 {[%emt 0:01:53]} d6 {[%emt 0:00:21]} 8. d4 {[%emt 0:01:56]} Bb6 {[%emt 0:00:06]} 9. dxe5 {[%emt 0:05:35]} Nxe5 {[%emt 0:02:43]} 10. Nxe5 {[%emt 0:01:45]} dxe5 {[%emt 0:00:09]} 11. Qxd8+ {[%emt 0:01:48]} Kxd8 {[%emt 0:00:11]} 12. Bg5 {[%emt 0:01:12]} Bb7 {[%emt 0:06:29]} 13. Nd2 {[%emt 0:00:21]} Ke7 {[%emt 0:09:14]} 14. Nf3 {[%emt 0:04:20]} h6 {[%emt 0:03:24]} 15. Bh4 {[%emt 0:01:15]} g5 {[%emt 0:08:05]} 16. Bg3 {[%emt 0:00:58]} Nxe4 {[%emt 0:02:31]} 17. Bxe5 {[%emt 0:00:23]} f6 {[%emt 0:03:16]} 18. Bd4 {[%emt 0:00:03]} c5 {[%emt 0:02:38]} 19. Be3 {[%emt 0:00:34]} Rhd8 {[%emt 0:11:33]} 20. Rfe1 {[%emt 0:03:34]} f5 {[%emt 0:06:06]} 21. Bc2 {[%emt 0:05:04]} Kf6 {[%emt 0:04:00]} 22. Bxe4 {[%emt 0:08:18]} Bxe4 {[%emt 0:03:47]} 23. Nd2 {[%emt 0:01:27]} Bd5 {[%emt 0:00:33]} 24. b4 {[%emt 0:01:19]} Rac8 {[%emt 0:06:59]} 25. Nb3 {[%emt 0:00:59]} Bxb3 {[%emt 0:09:15]} 26. axb3 {[%emt 0:00:11]} f4 {[%emt 0:02:10]} 27. Rxa6 {[%emt 0:11:15]} fxe3 {[%emt 0:05:33]} 28. Rxb6+ {[%emt 0:00:32]} Kg7 {[%emt 0:00:28]} 29. bxc5 {[%emt 0:08:11]} Rxc5 {[%emt 0:01:15]} 30. fxe3 {[%emt 0:00:54]} Rxc3 {[%emt 0:01:59]} 31. b4 {[%emt 0:06:00]} Rd2 {[%emt 0:03:47]} 32. Ra1 {[%emt 0:01:08]} Rc7 {[%emt 0:00:42]} 33. h3 {[%emt 0:02:10]} Rb2 {[%emt 0:00:34]} 34. Raa6 {[%emt 0:02:24]} Rxb4 {[%emt 0:02:00]} 35. Rxh6 {[%emt 0:01:02]} g4 {[%emt 0:02:42]} 36. Rag6+ {[%emt 0:02:53]} Kf7 {[%emt 0:00:03]} 37. Rxg4 {[%emt 0:00:29]} Rxg4 {[%emt 0:00:48]} 38. hxg4 {[%emt 0:00:03]} Rc3 {[%emt 0:01:46]} 39. Kf2 {[%emt 0:00:50]} b4 {[%emt 0:00:46]} 40. Rb6 {[%emt 0:00:00]} Rc2+ {[%emt 0:00:00]} 41. Kf3 {[%emt 0:00:38]} Rb2 {[%emt 0:00:59]} 42. g5 {[%emt 0:05:23]} b3 {[%emt 0:01:53]} 43. g3 {[%emt 0:00:37]} Rb1 {[%emt 0:00:56]} 44. Kg4 {[%emt 0:04:38]} b2 {[%emt 0:00:50]} 45. g6+ {[%emt 0:08:49]} Kg7 {[%emt 0:01:20]} 46. Kg5 {[%emt 0:00:32]} Rg1 {[%emt 0:01:15]} 47. Rb7+ {[%emt 0:00:13]} Kg8 {[%emt 0:00:02]} 48. Rxb2 {[%emt 0:02:08]} Rxg3+ {[%emt 0:00:08]} 49. Kf4 {[%emt 0:00:41]} Rxg6 {[%emt 0:00:09]} 50. Ke5 {[%emt 0:01:31]} Kf8 {[%emt 0:00:24]} 51. e4 {[%emt 0:00:43]} Ke8 {[%emt 0:00:44]} 52. Kf5 {[%emt 0:00:38]} Ra6 {[%emt 0:01:54]} 53. Rb7 {[%emt 0:00:45]} Rc6 {[%emt 0:00:18]} 54. Ra7 {[%emt 0:02:09]} Rb6 {[%emt 0:00:28]} 55. Ra5 {[%emt 0:01:20]} Rh6 {[%emt 0:01:55]} 56. e5 {[%emt 0:01:46]} Rb6 {[%emt 0:00:15]} 57. Ra7 {[%emt 0:01:09]} Rc6 {[%emt 0:00:45]} 58. Ke4 {[%emt 0:01:00]} Rb6 {[%emt 0:00:29]} 59. Kd5 {[%emt 0:00:30]} Rh6 {[%emt 0:00:06]} 60. Rc7 {[%emt 0:00:41]} Rg6 {[%emt 0:00:16]} 61. Rc8+ {[%emt 0:01:08]} Ke7 {[%emt 0:00:01]} 62. Rh8 {[%emt 0:00:08]} Ra6 {[%emt 0:00:09]} 63. Rb8 {[%emt 0:01:04]} Rh6 {[%emt 0:00:13]} 64. Rb4 {[%emt 0:01:16]} Ra6 {[%emt 0:00:09]} 65. Rb7+ {[%emt 0:00:44]} Ke8 {[%emt 0:00:01]} 66. Ke4 {[%emt 0:00:14]} Rc6 {[%emt 0:00:22]} 67. Kf5 {[%emt 0:00:10]} Ra6 {[%emt 0:00:06]} 68. Rb3 {[%emt 0:00:14]} Rc6 {[%emt 0:00:19]} 69. Rd3 {[%emt 0:00:03]} Ra6 {[%emt 0:00:10]} 70. Rd6 {[%emt 0:00:12]} Rxd6 {[%emt 0:00:10]} 71. exd6 {[%emt 0:00:34]} Kd7 {[%emt 0:00:02]} 72. Ke5 {[%emt 0:00:08]} Kd8 {[%emt 0:00:09]} 73. Ke6 {[%emt 0:00:31]} Ke8 {[%emt 0:00:01]} 74. d7+ {[%emt 0:00:11]} Kd8 {[%emt 0:00:01]} 75. Kd6 {[%emt 0:00:04]} 1/2-1/2

[Event "BAN-chT Golden Jubilee 2021-22"]
[Site "Dhaka"]
[Date "2022.03.20"]
[Round "11.12"]
[White "Chatterjee, Debaraj"]
[Black "Masum, Hossain"]
[Result "1-0"]
[ECO "D30"]
[WhiteElo "2196"]
[BlackElo "2003"]
[Annotator "ChessBase"]
[PlyCount "61"]
[EventDate "2022.03.10"]
[EventType "team-tourn"]
[EventCountry "BAN"]
[SourceTitle "playchess.com"]
[Source "ChessBase"]
[SourceQuality "1"]
[TimeControl "40/5400+30:1800+30"]

1. d4 {[%emt 0:02:12]} d5 {[%emt 0:00:26]} 2. c4 {[%emt 0:00:10]} c6 {[%emt 0:00:02]} 3. Nf3 {[%emt 0:00:24]} Nf6 {[%emt 0:00:04]} 4. e3 {[%emt 0:00:17]} e6 {[%emt 0:00:23]} 5. Nbd2 {[%emt 0:00:44]} Nbd7 {[%emt 0:00:10]} 6. Bd3 {[%emt 0:00:38]} dxc4 {[%emt 0:00:05]} 7. Nxc4 {[%emt 0:00:43]} a6 {[%emt 0:02:46]} 8. a4 {[%emt 0:06:58]} b5 {[%emt 0:00:22]} 9. axb5 {[%emt 0:00:54]} cxb5 {[%emt 0:00:02]} 10. Na5 {[%emt 0:00:40]} Qb6 {[%emt 0:15:33]} 11. O-O {[%emt 0:04:42]} Be7 {[%emt 0:00:12]} 12. Bd2 {[%emt 0:24:50]} O-O {[%emt 0:01:08]} 13. e4 {[%emt 0:00:22]} Bb7 {[%emt 0:07:03]} 14. Qe2 {[%emt 0:03:13]} Rac8 {[%emt 0:03:24]} 15. Nxb7 {[%emt 0:00:18]} Qxb7 {[%emt 0:00:03]} 16. h4 {[%emt 0:06:06]} Rfd8 {[%emt 0:06:35]} 17. g3 {[%emt 0:06:34]} Nb8 {[%emt 0:05:53]} 18. e5 {[%emt 0:09:37]} Nd5 {[%emt 0:21:37]} 19. Qe4 {[%emt 0:00:26]} g6 {[%emt 0:00:08]} 20. h5 {[%emt 0:00:56]} Nc6 {[%emt 0:17:16]} 21. hxg6 {[%emt 0:00:08]} hxg6 {[%emt 0:00:02]} 22. Qg4 {[%emt 0:00:40]} Kg7 {[%emt 0:01:41]} 23. Be4 {[%emt 0:01:20]} Qb6 {[%emt 0:01:45]} 24. Kg2 {[%emt 0:02:24]} b4 {[%emt 0:03:40]} 25. Rh1 {[%emt 0:03:30]} Rh8 {[%emt 0:05:43]} 26. Bg5 {[%emt 0:00:50]} Bxg5 {[%emt 0:04:53]} 27. Qxg5 {[%emt 0:00:18]} Nce7 {[%emt 0:00:07]} 28. Rac1 {[%emt 0:03:42]} Rxc1 {[%emt 0:00:51]} 29. Rxh8 {[%emt 0:02:59]} Kxh8 {[%emt 0:01:51]} 30. Qh6+ {[%emt 0:00:19]} Kg8 {[%emt 0:01:01]} 31. Ng5 {[%emt 0:00:12]} 1-0